bitfinex/quotes_ETHUSD_20241215
["timestamp","ask_amount","ask_price","bid_price","bid_amount"]
[1734265283599,3.92991943,3873.3,3872.6,0.05661984]
[1734265283794,3.92991943,3873.3,3872.7,2.22897593]
[1734265283996,4.32291137,3873.3,3872.8,0.89159037]
[1734265284197,4.32291137,3873.3,3872.8,0.05653272]
[1734265284398,4.32291137,3873.3,3872.5,1.07418496]
[1734265284757,4.32291137,3873.3,3872.5,1.96579476]
[1734265285157,4.32291137,3873.3,3872.6,0.05651859]
[1734265285460,4.32291137,3873.3,3872.7,0.8916098]
[1734265285660,4.32291137,3873.3,3872.7,0.94811858]
[1734265285899,4.32291137,3873.3,3872.7,0.05650878]
[1734265286257,4.32291137,3873.3,3872.5,1.07418496]
[1734265286602,4.32291137,3873.3,3872.8,0.05648209]
[1734265286805,4.32291137,3873.3,3872.6,0.05660297]
[1734265286988,4.32291137,3873.3,3872.9,0.05647228]
[1734265287374,2.58191,3873.1,3873.0,0.0564456]
[1734265287575,2.58191,3873.1,3872.4,1.07418496]
[1734265287775,1.34814943,3873.3,3873.0,0.0564456]
[1734265288187,1.34814943,3873.3,3872.4,1.07418496]
[1734265288394,1.34814943,3873.3,3873.1,0.05640205]
[1734265288395,3.92995943,3873.3,3873.1,0.05640205]
[1734265288591,0.39299594,3873.2,3872.4,1.07418496]
[1734265288795,3.92995943,3873.3,3873.2,0.05635849]
[1734265288993,1.34814943,3873.3,3872.4,1.07418496]
[1734265289207,2.58186,3873.2,3872.4,1.07418496]
[1734265289410,2.58186,3873.2,3872.4,1.9655638]
[1734265289804,2.58186,3873.2,3872.5,2.2284471]
[1734265289997,2.58186,3873.2,3872.6,2.2284471]
[1734265290198,2.58191,3873.1,3872.4,1.07418496]
[1734265290763,2.582,3873.0,3872.4,1.07418496]
[1734265291003,0.7983,3872.9,3872.2,1.07418496]
[1734265291202,0.7983,3872.9,3872.3,2.228539]
[1734265291413,0.7983,3872.9,3872.1,1.84048496]
[1734265291576,0.7983,3872.9,3872.2,2.2283765]
[1734265291775,0.7983,3872.9,3872.3,0.8913506]
[1734265291971,0.7983,3872.9,3872.1,1.84048496]
[1734265292188,0.7983,3872.9,3872.2,2.2283695]
[1734265292606,3.38034,3872.9,3872.3,0.8913478]
[1734265292787,0.7983,3872.9,3872.1,1.84048496]
[1734265293121,0.7983,3872.9,3872.3,0.05735808]
[1734265293281,0.7983,3872.9,3872.2,0.05740166]
[1734265293487,0.7983,3872.9,3872.4,0.05731451]
[1734265293680,0.7983,3872.9,3872.3,0.05735808]
[1734265294008,0.7983,3872.9,3872.4,0.05731451]
[1734265294205,0.52834591,3872.6,3872.1,1.84048496]
[1734265294452,0.52834591,3872.6,3872.2,3.64654365]
[1734265294578,0.52834591,3872.6,3872.3,2.22718245]
[1734265294779,0.52834591,3872.6,3872.4,2.22718245]
[1734265294983,0.52834591,3872.6,3872.5,0.89087298]
[1734265295190,0.52834591,3872.6,3872.4,0.89087298]
[1734265295443,0.52834591,3872.6,3872.5,0.94814392]
[1734265295601,0.7581,3873.5,3872.7,0.7845]
[1734265295798,0.52096187,3873.2,3872.8,0.89057921]
[1734265296029,0.7581,3873.8,3872.8,0.05714025]
[1734265296191,0.7581,3873.8,3872.8,0.24872277]
[1734265296637,0.7581,3873.8,3872.9,0.89059324]
[1734265296817,0.7581,3873.8,3873.0,0.05712119]
[1734265297501,0.7581,3873.8,3873.0,2.63906119]
[1734265297840,2.58111,3874.3,3873.0,2.63906119]
[1734265297841,0.7581,3874.2,3873.1,3.47237865]
[1734265297989,4.03822017,3874.2,3873.2,0.05684917]
[1734265298435,6.61940017,3874.2,3873.2,0.05684917]
[1734265298652,0.50878089,3873.6,3873.2,0.05684917]
[1734265298936,0.7581,3874.2,3873.3,0.7845]
[1734265299110,0.7581,3874.2,3873.4,3.47213935]
[1734265299314,0.7581,3874.2,3873.4,2.58168]
[1734265299621,0.52571788,3873.9,3873.5,0.94709403]
[1734265299792,0.52571788,3873.9,3873.5,0.05671853]
[1734265300014,0.52571788,3873.9,3873.4,2.58168]
[1734265300240,0.52571788,3873.9,3873.5,0.94711627]
[1734265300551,0.52571788,3873.9,3873.5,0.05671853]
[1734265300888,0.52571788,3873.9,3873.3,3.36626]
[1734265301085,0.52571788,3873.9,3873.6,0.05667499]
[1734265301551,2.58085,3874.7,3873.5,2.58164]
[1734265301752,0.7581,3874.6,3873.7,0.056335]
[1734265302051,0.52138036,3874.1,3873.8,0.05546511]
[1734265302206,0.52138036,3874.1,3873.7,2.5815]
[1734265302403,0.52138036,3874.1,3873.8,0.05542413]
[1734265302610,0.52138036,3874.1,3873.2,4.19306745]
[1734265302611,0.7581,3874.6,3873.9,2.58137]
[1734265302846,0.7581,3874.6,3874.0,0.258137]
[1734265303163,2.58061,3875.1,3874.0,0.31338395]
[1734265303164,0.7581,3875.0,3874.0,0.31338395]
[1734265303364,0.7581,3875.0,3874.0,0.05524695]
[1734265303567,0.7581,3875.0,3874.3,2.5811]
[1734265303717,4.99157623,3876.0,3874.5,3.36546]
[1734265303718,0.7581,3875.5,3874.5,3.36546]
[1734265304050,0.7581,3875.5,3874.6,0.05477695]
[1734265304862,0.52349858,3874.7,3874.6,0.05477695]
[1734265305010,0.52349858,3874.7,3874.5,0.7845]
[1734265305212,0.52349858,3874.7,3874.6,0.05477695]
[1734265305526,0.52349858,3874.7,3874.5,0.7845]
[1734265305737,0.52349858,3874.7,3874.6,0.05477695]
[1734265306115,0.52349858,3874.7,3874.5,0.7845]
[1734265306320,0.52349858,3874.7,3874.6,0.05448067]
[1734265306630,0.52349858,3874.7,3874.5,0.7845]
[1734265306959,0.52349858,3874.7,3874.6,0.05448067]
[1734265307371,0.52349858,3874.7,3874.5,3.36547]
[1734265307516,0.52349858,3874.7,3874.6,0.05448067]
[1734265307864,0.52349858,3874.7,3874.5,3.36547]
[1734265308063,0.52349858,3874.7,3874.6,0.05447095]
[1734265308237,0.52349858,3874.7,3874.6,2.58091]
[1734265308650,0.52349858,3874.7,3874.6,2.63538095]
[1734265310173,0.52349858,3874.7,3874.6,0.05447095]
[1734265310524,0.52349858,3874.7,3874.2,3.36567]
[1734265310725,0.52349858,3874.7,3874.6,0.05445639]
[1734265310962,0.52349858,3874.7,3874.2,3.36567]
[1734265311163,0.52349858,3874.7,3874.6,0.05445639]
[1734265311362,0.52349858,3874.7,3874.2,3.36567]
[1734265311573,0.52349858,3874.7,3874.6,0.05445639]
[1734265311716,0.52349858,3874.7,3874.2,3.36567]
[1734265311917,0.52349858,3874.7,3874.6,0.05451952]
[1734265312134,0.52349858,3874.7,3874.2,3.36567]
[1734265312338,0.52349858,3874.7,3874.6,0.05451952]
[1734265312532,0.52349858,3874.7,3874.2,3.36567]
[1734265312734,0.52349858,3874.7,3874.6,0.05451952]
[1734265312950,0.52349858,3874.7,3874.3,2.58104]
[1734265313133,0.52349858,3874.7,3874.6,0.05411146]
[1734265313343,0.52349858,3874.7,3874.4,2.58102]
[1734265313522,0.52349858,3874.7,3874.6,0.05411146]
[1734265313773,0.52349858,3874.7,3874.5,0.05415497]
[1734265313976,0.52349858,3874.7,3874.6,0.05411146]
[1734265314365,0.52349858,3874.7,3874.5,2.58096]
[1734265314685,0.52349858,3874.7,3874.6,0.31220746]
[1734265315460,0.52349858,3874.7,3874.6,2.89311746]
[1734265316273,0.52349858,3874.7,3874.6,0.05411146]
[1734265316474,0.52349858,3874.7,3874.2,3.36567]
[1734265316689,0.52349858,3874.7,3874.3,0.05390227]
[1734265316893,0.52349858,3874.7,3874.2,3.36567]
[1734265317189,0.52349858,3874.7,3874.3,0.05390227]
[1734265317689,1.30729858,3874.7,3874.4,0.05385876]
[1734265317873,1.30729858,3874.7,3874.0,3.1313]
[1734265318044,1.30729858,3874.7,3874.2,0.55]
[1734265318389,1.30729858,3874.7,3874.3,0.05390227]
[1734265318794,1.30729858,3874.7,3874.2,0.55]
[1734265319096,1.30729858,3874.7,3874.3,0.05390227]
[1734265319393,1.30729858,3874.7,3874.2,0.55]
[1734265319595,1.30729858,3874.7,3874.4,0.05385876]
[1734265319754,1.30729858,3874.7,3874.3,0.05390227]
[1734265319964,1.30729858,3874.7,3874.2,0.55]
[1734265319965,1.30729858,3874.7,3874.5,0.05381526]
[1734265320181,1.30729858,3874.7,3874.4,0.05385876]
[1734265320351,1.30729858,3874.7,3874.6,0.05377175]
[1734265320552,1.30729858,3874.7,3874.5,0.05381526]
[1734265320775,1.30729858,3874.7,3874.6,0.05377175]
[1734265321281,1.30729858,3874.7,3874.0,0.55]
[1734265321448,1.30729858,3874.7,3874.0,0.944077]
[1734265321647,1.30729858,3874.7,3874.1,0.05413985]
[1734265323602,0.52349858,3874.7,3874.1,0.05413985]
[1734265323754,0.52349858,3874.7,3874.2,0.8094]
[1734265324198,0.52349858,3874.7,3874.3,0.05411016]
[1734265324351,1.30729858,3874.7,3874.3,0.05411016]
[1734265324552,1.30729858,3874.7,3874.0,0.55]
[1734265324782,1.30729858,3874.7,3874.4,0.05413948]
[1734265325027,1.30729858,3874.7,3874.0,0.944071]
[1734265325450,1.30729858,3874.7,3874.1,0.05427002]
[1734265326095,1.30729858,3874.7,3873.1,2.58187]
[1734265326322,1.30729858,3874.7,3873.4,0.8094]
[1734265326472,2.58091,3874.6,3873.5,2.920721]
[1734265326673,2.58091,3874.6,3873.6,0.0549875]
[1734265327313,1.30729858,3874.7,3873.6,2.6365175]
[1734265328383,1.30729858,3874.7,3873.6,0.0549875]
[1734265328584,1.30729858,3874.7,3873.7,2.58149]
[1734265328798,1.30729858,3874.7,3873.7,2.95998885]
[1734265328977,1.30729858,3874.7,3873.8,0.05507043]
[1734265329875,2.58105,3874.4,3873.8,0.05507043]
[1734265330117,0.7838,3874.3,3873.4,0.8094]
[1734265330433,0.7838,3874.3,3873.9,0.05501718]
[1734265330577,0.336485,3874.2,3873.4,0.8094]
[1734265330778,0.7838,3874.3,3873.4,0.8094]
[1734265330978,3.36491,3874.3,3873.5,0.05519133]
[1734265331286,3.36491,3874.3,3873.3,0.55]
[1734265331476,3.36491,3874.3,3873.4,0.05523488]
[1734265331678,0.7838,3874.3,3873.4,0.05523488]
[1734265331874,0.7838,3874.3,3873.4,0.45487337]
[1734265333494,0.7838,3874.3,3873.4,0.05523488]
[1734265333495,0.52338995,3874.0,3873.4,0.05523488]
[1734265335528,0.52338995,3874.0,3873.1,0.8094]
[1734265335728,0.52338995,3874.0,3873.5,0.05546823]
[1734265336027,0.52338995,3874.0,3873.2,3.13183]
[1734265336252,0.52338995,3874.0,3873.6,0.05542469]
[1734265336455,0.52338995,3874.0,3873.2,3.13183]
[1734265336600,0.52338995,3874.0,3873.7,0.05538115]
[1734265336920,0.52338995,3874.0,3873.8,0.05533762]
[1734265337250,0.52338995,3874.0,3873.2,0.55]
[1734265337407,3.40765,3874.7,3873.9,0.05529408]
[1734265337591,0.52897134,3874.2,3873.8,0.8127]
[1734265337791,0.52897134,3874.2,3874.0,0.05525055]
[1734265338040,0.52897134,3874.2,3873.9,0.05529408]
[1734265338243,0.52897134,3874.2,3874.1,0.05520702]
[1734265338407,0.52897134,3874.2,3874.0,0.05538657]
[1734265338740,0.52897134,3874.2,3874.1,0.05534304]
[1734265339247,0.52897134,3874.2,3873.8,0.8127]
[1734265339451,0.52897134,3874.2,3874.1,0.05526046]
[1734265339633,0.52897134,3874.2,3873.5,3.39433]
[1734265339795,0.52897134,3874.2,3874.1,0.05526046]
[1734265339995,0.52897134,3874.2,3873.5,0.8127]
[1734265340320,0.8268,3874.1,3873.6,2.27990377]
[1734265340529,0.8268,3874.1,3873.6,0.05547813]
[1734265341854,0.8268,3874.1,3873.7,0.8903981]
[1734265342195,0.8268,3874.1,3873.8,0.05539105]
[1734265342752,0.8268,3874.1,3873.9,0.05534752]
[1734265343097,0.8268,3874.1,3873.5,1.88588777]
[1734265343297,0.8268,3874.1,3873.6,3.3553755]
[1734265343559,0.8268,3874.1,3873.7,2.2267096]
[1734265344040,0.8268,3874.1,3873.8,0.05539105]
[1734265344611,0.8268,3874.1,3873.5,1.07318777]
[1734265345247,0.8268,3874.1,3873.6,0.05547813]
[1734265345429,0.8268,3874.1,3873.7,0.89113207]
[1734265345624,0.8268,3874.1,3873.6,0.05547813]
[1734265345842,0.8268,3874.1,3873.7,2.22789992]
[1734265346056,0.52897134,3874.2,3873.8,3.0404871]
[1734265346253,0.52897134,3874.2,3873.8,4.16906592]
[1734265346413,0.52897134,3874.2,3873.9,4.8091471]
[1734265346748,0.52897134,3874.2,3874.0,2.28300934]
[1734265347056,0.52897134,3874.2,3874.1,2.22742047]
[1734265347247,0.52897134,3874.2,3874.1,2.65746184]
[1734265347596,0.52897134,3874.2,3874.1,2.71260084]
[1734265349246,0.52897134,3874.2,3874.1,6.10654084]
[1734265351156,0.8268,3875.1,3874.2,2.58115]
[1734265351334,0.8268,3875.1,3874.3,2.22753353]
[1734265351499,0.8268,3875.1,3874.4,2.56307648]
[1734265351734,0.52526857,3874.5,3874.4,0.33565658]
[1734265352001,0.52526857,3874.5,3874.4,1.22659009]
[1734265352236,0.52526857,3874.5,3874.4,2.56299035]
[1734265352440,0.8252,3875.5,3874.4,3.11299035]
[1734265352618,0.8252,3875.5,3874.7,2.58083]
[1734265353017,0.8252,3875.5,3874.8,0.05458663]
[1734265353446,3.40553,3875.5,3874.8,0.05458663]
[1734265353615,0.52852021,3875.1,3874.5,0.7799]
[1734265353816,0.52852021,3875.1,3874.9,0.05453826]
[1734265354016,0.52852021,3875.1,3874.5,1.85308777]
[1734265354253,0.52852021,3875.1,3875.0,0.05436363]
[1734265354404,0.52852021,3875.1,3874.5,1.85308777]
[1734265354754,1.35372021,3875.1,3874.6,0.89110498]
[1734265355044,1.48909223,3875.1,3874.6,0.05454254]
[1734265355552,1.48909223,3875.1,3874.7,0.05454273]
[1734265356053,1.48909223,3875.1,3874.3,1.07318777]
[1734265356346,1.48909223,3875.1,3874.4,2.22813693]
[1734265356550,1.48909223,3875.1,3874.5,0.89133768]
[1734265356707,0.40696222,3875.0,3874.5,0.89133768]
[1734265356909,1.35372021,3875.1,3874.6,1.39142998]
[1734265357109,1.35372021,3875.1,3874.7,0.89119671]
[1734265357355,1.35372021,3875.1,3874.8,0.05449922]
[1734265357734,1.35372021,3875.1,3874.4,1.07318777]
[1734265357935,1.35372021,3875.1,3874.5,0.05462977]
[1734265358135,0.52852021,3875.1,3874.6,2.22798386]
[1734265358446,0.52852021,3875.1,3874.7,1.72563627]
[1734265358790,0.52852021,3875.1,3874.7,0.83444273]
[1734265360447,0.52852021,3875.1,3874.7,0.05454273]
[1734265360762,0.52852021,3875.1,3874.5,0.55]
[1734265360957,0.52852021,3875.1,3874.8,0.05422723]
[1734265361178,0.52852021,3875.1,3874.5,0.55]
[1734265361379,0.52852021,3875.1,3874.9,0.05418371]
[1734265361535,0.52852021,3875.1,3874.5,0.55]
[1734265361877,0.52852021,3875.1,3874.6,2.28228436]
[1734265362081,0.7864,3875.0,3874.6,0.05431426]
[1734265362401,0.7864,3875.0,3874.2,1.07318777]
[1734265362534,0.7864,3875.0,3874.7,0.05427074]
[1734265362764,0.7864,3875.0,3874.2,1.07318777]
[1734265362963,0.7864,3875.0,3874.8,0.05422723]
[1734265363210,0.38955002,3874.9,3874.2,1.07318777]
[1734265363511,0.7864,3875.0,3874.3,2.22909032]
[1734265363731,0.7864,3875.0,3874.2,0.55]
[1734265363732,0.7864,3875.0,3874.4,0.89163613]
[1734265364015,0.52852021,3875.1,3874.4,2.58103]
[1734265364316,0.52852021,3875.1,3874.6,1.3079]
[1734265364519,0.52852021,3875.1,3874.7,0.89148503]
[1734265364812,0.7864,3875.2,3874.7,0.89148503]
[1734265365185,0.7864,3875.5,3874.7,0.89148503]
[1734265365769,0.50534063,3875.3,3874.7,3.47232503]
[1734265365970,0.50534063,3875.3,3874.7,2.58084]
[1734265366293,0.50534063,3875.3,3874.8,0.89133502]
[1734265366492,0.50534063,3875.3,3874.7,2.58084]
[1734265366688,0.7864,3875.5,3874.8,2.58077]
[1734265366926,3.65670355,3875.9,3874.9,0.89121132]
[1734265366927,0.7864,3875.8,3874.9,0.89121132]
[1734265367105,0.336645,3875.7,3874.9,0.89121132]
[1734265367877,0.51958575,3875.4,3875.0,0.05396722]
[1734265368284,0.51958575,3875.4,3874.8,2.58077]
[1734265368489,0.51958575,3875.4,3874.9,0.05401073]
[1734265368979,0.51958575,3875.4,3875.0,0.89103854]
[1734265369184,0.51958575,3875.4,3875.1,0.4598937]
[1734265369396,0.51958575,3875.4,3875.1,0.05392372]
[1734265369898,0.51958575,3875.4,3875.2,0.05388022]
[1734265370098,0.51958575,3875.4,3874.8,0.55]
[1734265370300,0.51958575,3875.4,3874.9,2.28118806]
[1734265370499,0.51958575,3875.4,3874.9,0.05401073]
[1734265372131,0.826,3875.3,3874.9,0.05401073]
[1734265373237,0.51958575,3875.4,3874.9,0.05401073]
[1734265374622,0.51958575,3875.4,3874.9,2.63471073]
[1734265374803,0.51958575,3875.4,3875.0,1.70628083]
[1734265375006,0.51958575,3875.4,3875.0,3.04177137]
[1734265375300,0.51958575,3875.4,3875.1,2.27952899]
[1734265375499,0.826,3876.2,3875.2,0.89008712]
[1734265375707,0.5166341,3875.7,3875.3,0.05365218]
[1734265375933,0.5166341,3875.7,3875.2,2.5805]
[1734265376139,0.826,3876.2,3875.3,0.05347739]
[1734265376341,0.826,3876.2,3875.3,2.58043]
[1734265376543,0.826,3876.2,3875.4,0.05343389]
[1734265376723,0.826,3876.2,3875.4,2.58037]
[1734265376897,0.826,3876.2,3875.5,0.0533904]
[1734265377097,0.51260878,3875.8,3875.5,0.0533904]
[1734265377331,0.51260878,3875.8,3875.5,0.31676644]
[1734265377642,0.51260878,3875.8,3875.5,0.0533904]
[1734265377941,0.51260878,3875.8,3875.1,0.55]
[1734265378341,0.51260878,3875.8,3875.2,0.05335098]
[1734265378541,0.51260878,3875.8,3875.1,0.55]
[1734265378832,0.51260878,3875.8,3875.2,0.05335584]
[1734265379036,3.40624,3875.7,3875.2,0.05335584]
[1734265379397,3.40624,3875.7,3874.6,3.65406777]
[1734265379597,3.40624,3875.7,3875.3,0.05341913]
[1734265379835,3.40624,3875.7,3874.6,3.65406777]
[1734265380132,3.40624,3875.7,3874.7,2.22500987]
[1734265380336,3.40624,3875.7,3874.8,2.27864652]
[1734265380533,3.40624,3875.7,3874.9,0.89000395]
[1734265380834,3.40624,3875.7,3875.0,0.05354964]
[1734265381518,3.40624,3875.7,3875.1,0.05350613]
[1734265381723,3.40624,3875.7,3874.6,3.65406777]
[1734265381919,3.40624,3875.7,3874.7,2.27901352]
[1734265382261,3.40624,3875.7,3874.8,2.22533335]
[1734265382401,2.58025,3875.6,3874.9,0.89013334]
[1734265382597,3.40632,3875.5,3874.9,0.05359315]
[1734265383119,3.40632,3875.5,3874.5,1.62318777]
[1734265383434,0.826,3875.5,3874.5,1.62318777]
[1734265383595,0.826,3875.5,3874.6,0.05367998]
[1734265385039,0.826,3875.5,3874.7,2.22520167]
[1734265385363,0.826,3875.5,3874.8,0.05359295]
[1734265386172,0.826,3875.5,3874.8,2.63435295]
[1734265386357,0.826,3875.5,3874.9,0.35244336]
[1734265386554,1.33860878,3875.8,3875.0,1.41940594]
[1734265386756,1.33860878,3875.8,3875.2,0.55]
[1734265386943,1.33860878,3875.8,3875.3,0.05353565]
[1734265387141,1.33860878,3875.8,3875.2,3.1305]
[1734265387467,1.33860878,3875.8,3875.3,0.0534434]
[1734265387676,1.33860878,3875.8,3875.3,0.19537774]
[1734265387823,1.33860878,3875.8,3875.3,0.14193434]
[1734265388174,0.51260878,3875.8,3875.5,3.1303]
[1734265388373,1.90265355,3876.2,3875.5,3.1303]
[1734265388534,1.90265355,3876.2,3875.6,2.63359156]
[1734265388737,1.90265355,3876.2,3875.6,3.44949156]
[1734265389164,1.07665355,3876.2,3875.6,3.44949156]
[1734265389364,1.07665355,3876.2,3875.6,0.86926156]
[1734265390238,1.07665355,3876.2,3875.6,3.44950156]
[1734265390875,0.51637437,3876.1,3875.6,3.44950156]
[1734265391182,0.51326703,3876.1,3875.6,3.44950156]
[1734265392670,0.51326703,3876.1,3875.6,0.86926156]
[1734265393354,0.51326703,3876.1,3875.6,0.05336156]
[1734265393557,0.7761,3876.0,3875.6,0.05336156]
[1734265394569,0.51326703,3876.1,3875.6,0.05336156]
[1734265394775,3.35554,3876.8,3875.7,3.67374216]
[1734265395171,0.7761,3876.8,3875.8,0.05249704]
[1734265396257,0.7761,3876.8,3876.0,2.57996]
[1734265396258,0.50388646,3876.3,3876.0,2.57996]
[1734265396489,0.7761,3876.8,3876.1,0.55]
[1734265396662,0.7761,3876.8,3876.1,0.60224868]
[1734265397000,1.07665355,3876.9,3876.3,0.7752]
[1734265397389,0.50488271,3876.7,3876.3,0.7752]
[1734265397606,0.50488271,3876.7,3876.3,3.35495]
[1734265397779,0.50488271,3876.7,3876.4,0.05202316]
[1734265398404,1.07665355,3876.9,3876.4,0.05202316]
[1734265398607,1.07665355,3876.9,3876.5,0.34069732]
[1734265398764,0.51411679,3876.8,3876.5,0.34069732]
[1734265398966,0.51411679,3876.8,3876.6,0.05198679]
[1734265399164,0.51411679,3876.8,3876.5,0.34069732]
[1734265399363,0.51411679,3876.8,3876.6,0.05200365]
[1734265399564,0.51411679,3876.8,3876.5,0.34069732]
[1734265399796,0.51411679,3876.8,3876.6,0.05200365]
[1734265400063,0.51411679,3876.8,3876.4,2.57971]
[1734265400406,0.51411679,3876.8,3876.5,0.05206397]
[1734265401203,1.07665355,3876.9,3876.7,2.57949]
[1734265401510,1.07665355,3876.9,3876.8,1.3252]
[1734265401822,1.07665355,3876.9,3876.8,1.37689581]
[1734265401989,0.7761,3877.6,3876.8,1.37689581]
[1734265402196,0.51798583,3877.2,3876.8,1.37689581]
[1734265402392,0.51798583,3877.2,3876.8,1.77254839]
[1734265402803,0.51798583,3877.2,3876.8,0.99734839]
[1734265404621,0.7761,3877.1,3876.8,0.05169581]
[1734265404780,3.35548,3876.9,3876.8,0.05169581]
[1734265405119,2.57946,3876.8,3875.8,0.7752]
[1734265405321,2.57946,3876.8,3875.9,0.335543]
[1734265405463,2.57946,3876.8,3875.9,0.38698954]
[1734265405970,2.57951,3876.7,3875.9,0.38698954]
[1734265406561,2.57951,3876.7,3875.9,0.05144654]
[1734265410365,0.51739389,3876.4,3875.9,0.05144654]
[1734265413277,0.7761,3876.9,3876.0,0.55]
[1734265413480,0.7986,3877.4,3876.4,2.5797]
[1734265413690,0.7986,3877.4,3876.3,0.8288]
[1734265413691,0.7986,3877.4,3876.5,3.12962]
[1734265413890,0.7986,3877.4,3876.5,3.57721535]
[1734265414320,1.07665355,3878.3,3876.6,0.8288]
[1734265414321,0.7986,3877.7,3876.6,0.8288]
[1734265414497,0.52332089,3877.3,3876.7,2.5795]
[1734265414689,0.52332089,3877.3,3876.7,2.63116642]
[1734265416582,0.52332089,3877.3,3876.8,0.55]
[1734265416823,0.52332089,3877.3,3876.9,0.19462614]
[1734265417879,0.52332089,3877.3,3877.0,0.8288]
[1734265418334,0.52332089,3877.3,3877.1,0.05117722]
[1734265418640,0.7986,3878.2,3877.2,3.12917]
[1734265418822,0.7986,3878.2,3877.3,0.40091472]
[1734265418996,0.7986,3878.2,3877.3,0.45195168]
[1734265420498,0.51144509,3877.8,3877.3,0.45195168]
[1734265421238,0.51144509,3877.8,3877.4,0.7948]
[1734265421645,0.7986,3878.2,3877.5,0.05072211]
[1734265421987,0.7986,3878.2,3877.6,0.36478323]
[1734265422191,0.7986,3878.2,3877.7,0.05063037]
[1734265422690,0.50303792,3878.0,3877.7,0.05063037]
[1734265424733,0.50303792,3878.0,3877.5,0.55]
[1734265425091,0.50303792,3878.0,3877.4,0.7948]
[1734265425092,0.50303792,3878.0,3877.6,0.05067381]
[1734265425293,0.50303792,3878.0,3877.6,0.34245738]
[1734265425620,0.50303792,3878.0,3877.7,0.05063037]
[1734265425989,0.50303792,3878.0,3877.5,0.55]
[1734265426240,0.50303792,3878.0,3877.6,0.05067381]
[1734265426872,2.57873,3877.9,3877.6,0.05067381]
[1734265427170,2.57873,3877.9,3877.0,0.7948]
[1734265427171,0.7879,3877.8,3877.0,0.7948]
[1734265427474,3.36669,3877.8,3877.1,0.05022164]
[1734265428662,2.57891,3877.6,3877.1,0.05022164]
[1734265429830,2.57891,3877.6,3876.9,0.55]
[1734265430121,2.57891,3877.6,3876.6,0.7948]
[1734265430122,2.57902,3877.5,3876.6,0.7948]
[1734265430350,0.7879,3877.8,3876.7,0.05051187]
[1734265430663,2.5791,3877.4,3876.7,0.05051187]
[1734265431216,3.0871462,3877.4,3876.7,0.05051187]
[1734265431622,2.57911,3877.3,3876.7,0.05051187]
[1734265432124,0.8035,3877.2,3876.7,0.05051187]
[1734265432825,3.38269,3877.2,3876.7,0.05051187]
[1734265437165,0.8035,3877.2,3876.7,0.05051187]
[1734265438821,2.57927,3877.1,3876.7,0.05051187]
[1734265442342,0.8035,3877.2,3876.7,0.05051187]
[1734265443122,3.38269,3877.2,3876.7,0.05051187]
[1734265443522,2.57944,3876.8,3876.7,0.05051187]
[1734265443727,2.57944,3876.8,3876.0,0.7789]
[1734265444180,2.57944,3876.8,3876.1,0.04927415]
[1734265444581,3.09469545,3876.8,3876.1,0.04927415]
[1734265445177,3.38305,3876.7,3876.1,0.04927415]
[1734265445380,0.8035,3876.7,3876.1,0.04927415]
[1734265446049,0.51525545,3876.8,3876.1,0.04927415]
[1734265446572,3.09470545,3876.8,3876.1,0.04927415]
[1734265446882,0.51525545,3876.8,3876.1,0.04927415]
[1734265448069,0.51525545,3876.8,3876.1,0.39010257]
[1734265448421,0.8035,3877.2,3876.3,0.7789]
[1734265448627,0.8035,3877.7,3876.6,0.55]
[1734265448858,0.51608077,3877.3,3876.8,0.55]
[1734265449070,3.38221,3878.0,3876.8,0.55]
[1734265449274,3.38221,3878.0,3877.0,0.55]
[1734265449645,3.38221,3878.0,3877.1,0.04940707]
[1734265449863,0.8035,3878.0,3877.1,0.04940707]
[1734265450057,0.50385576,3877.6,3877.1,0.04940707]
[1734265453342,2.57857,3878.2,3877.2,0.8098]
[1734265453549,0.8102,3878.3,3877.3,0.55]
[1734265453932,0.8102,3878.3,3877.4,0.04890322]
[1734265454579,0.5277302,3878.0,3877.5,0.8098]
[1734265454936,0.5277302,3878.0,3877.6,0.04881633]
[1734265455621,0.8102,3878.6,3877.6,0.18967796]
[1734265455893,3.38846,3878.6,3877.6,0.18967796]
[1734265456184,3.38846,3878.6,3877.7,0.04877289]
[1734265456534,3.38846,3878.6,3877.6,0.14086163]
[1734265456885,3.38846,3878.6,3877.7,0.04877289]
[1734265457047,3.83497136,3878.6,3877.7,0.04877289]
[1734265457798,0.8102,3878.6,3877.7,0.04877289]
[1734265457973,0.52302344,3878.3,3877.9,0.55]
[1734265458140,0.8102,3879.0,3878.1,0.55]
[1734265458387,0.8102,3879.0,3878.2,0.04796447]
[1734265458711,0.52704591,3878.4,3878.2,0.04796447]
[1734265458877,0.52704591,3878.4,3878.2,0.38336867]
[1734265459386,1.07665355,3879.4,3878.2,0.38336867]
[1734265459591,1.61498032,3879.5,3878.3,0.8098]
[1734265459592,1.88685355,3879.5,3878.3,0.8098]
[1734265459752,2.57778,3879.3,3878.3,0.8098]
[1734265460296,0.8102,3879.5,3878.4,0.55]
[1734265460602,0.8102,3879.5,3878.5,0.8142]
[1734265460753,2.57752,3879.7,3878.6,0.04626345]
[1734265460951,3.32028736,3879.7,3878.6,0.04626345]
[1734265461273,3.32028736,3879.7,3878.7,0.55]
[1734265461479,4.7303871,3880.4,3878.7,0.55]
[1734265461480,4.42746355,3880.1,3878.8,0.8142]
[1734265461662,3.35081,3880.1,3878.9,2.578]
[1734265461861,3.35081,3880.1,3878.9,0.55]
[1734265461862,0.51405025,3879.3,3878.9,0.55]
[1734265462074,0.51405025,3879.3,3879.0,0.04593682]
[1734265463976,0.51405025,3879.3,3878.8,3.39231]
[1734265464179,0.51405025,3879.3,3878.9,0.38522806]
[1734265464495,0.51405025,3879.3,3878.9,0.04599706]
[1734265464988,0.51405025,3879.3,3879.0,0.04595366]
[1734265465159,0.51405025,3879.3,3878.8,3.3923]
[1734265465364,2.57791,3879.1,3878.9,0.04599706]
[1734265465590,2.57798,3879.0,3878.4,0.8142]
[1734265465901,2.57798,3879.0,3877.9,0.8142]
[1734265466065,2.57798,3879.0,3877.9,1.16758316]
[1734265466239,2.57798,3879.0,3878.0,0.04513869]
[1734265466441,2.57813,3878.8,3878.0,0.04513869]
[1734265466755,0.7735,3878.7,3878.0,0.04513869]
[1734265467578,0.7735,3879.0,3878.0,0.04513869]
[1734265467895,1.16005202,3879.0,3878.0,0.04513869]
[1734265468138,2.57815,3878.8,3878.0,0.04513869]
[1734265468417,2.57818,3878.7,3878.1,0.04553265]
[1734265468628,2.57818,3878.7,3877.9,0.8142]
[1734265468818,2.57818,3878.7,3878.0,0.04557608]
[1734265470104,2.57825,3878.6,3878.0,0.04557608]